bitfinex/quotes_ETHUSD_20251224
["timestamp","ask_amount","ask_price","bid_price","bid_amount"]
[1766599220576,0.0342,2938.7,2938.0,0.0129]
[1766599221608,3.4370785,2938.7,2938.0,0.0129]
[1766599222010,7.677,2938.6,2937.9,0.03403791]
[1766599222207,9.70156273,2938.6,2937.9,0.03403791]
[1766599223678,7.677,2938.4,2937.8,0.889]
[1766599224021,7.677,2938.4,2937.9,0.03403791]
[1766599224226,2.02456273,2938.6,2938.0,0.019]
[1766599224526,0.0342,2938.7,2938.0,0.019]
[1766599224733,3.43711321,2938.7,2938.0,0.019]
[1766599225585,3.43911321,2938.7,2938.0,0.019]
[1766599226502,0.0362,2938.7,2938.0,0.019]
[1766599226710,11.11607253,2938.7,2938.0,0.019]
[1766599227018,1.11160725,2938.6,2938.0,0.019]
[1766599228204,4.51460833,2938.6,2938.0,0.019]
[1766599228404,0.0362,2938.7,2938.0,0.019]
[1766599228639,0.002,2938.7,2938.0,0.019]
[1766599230152,0.002,2938.9,2938.2,0.0102]
[1766599230435,0.002,2939.2,2938.4,0.0072]
[1766599230733,7.677,2938.8,2937.9,0.001]
[1766599230944,7.677,2938.6,2937.9,0.001]
[1766599231226,7.677,2938.2,2937.9,0.001]
[1766599231398,0.03337324,2938.1,2937.9,0.001]
[1766599231602,7.59497324,2938.1,2937.2,0.888]
[1766599231800,0.03337324,2938.0,2937.2,0.8951]
[1766599232000,0.03337324,2938.0,2937.3,0.03404487]
[1766599232001,7.59497324,2938.0,2937.3,0.03404487]
[1766599232217,3.40379182,2937.9,2937.2,0.0071]
[1766599232415,0.03337324,2937.8,2937.2,0.0071]
[1766599233242,0.03337324,2937.8,2936.9,3.40493637]
[1766599233243,7.59497324,2937.8,2937.3,0.03404487]
[1766599233430,0.03337324,2937.7,2937.1,0.888]
[1766599233636,0.03337324,2937.7,2937.2,0.03404603]
[1766599234439,7.5616,2938.6,2937.3,0.03404487]
[1766599234643,14.77531971,2938.5,2937.1,4.29266295]
[1766599234953,14.77531971,2938.5,2937.2,3.40456586]
[1766599235253,7.5616,2938.4,2937.2,3.40456586]
[1766599235458,7.5616,2938.4,2937.3,0.03404487]
[1766599235661,7.5616,2938.4,2937.4,0.68432137]
[1766599235970,7.5616,2938.4,2937.5,0.03404255]
[1766599236170,7.5616,2938.4,2937.6,0.888]
[1766599236327,7.5616,2938.4,2937.7,0.03404023]
[1766599236755,3.40332845,2938.3,2937.7,0.03404023]
[1766599236953,7.5616,2938.4,2937.7,0.03404023]
[1766599236954,10.96486851,2938.4,2937.7,0.03404023]
[1766599237272,3.40492403,2938.7,2937.7,3.4379921]
[1766599237581,0.002,2938.7,2937.7,3.43806043]
[1766599237725,3.40487308,2938.7,2937.7,3.43806043]
[1766599237926,6.80774616,2938.7,2937.7,0.03404023]
[1766599238126,7.62265731,2938.6,2936.8,2.893001]
[1766599238376,7.62265731,2938.4,2936.9,1.51790856]
[1766599238536,7.62265731,2938.4,2936.9,0.888]
[1766599238932,0.06105731,2938.2,2937.0,3.40483486]
[1766599239138,7.5616,2938.1,2937.1,0.92204718]
[1766599239356,7.5616,2937.9,2937.1,0.92204718]
[1766599240529,7.5616,2937.9,2937.1,0.03404718]
[1766599240735,7.62265731,2937.7,2936.7,0.001]
[1766599240934,6.80827886,2937.6,2936.7,0.889]
[1766599241161,7.5616,2937.5,2936.9,0.001]
[1766599241466,9.00469362,2937.5,2936.9,0.001]
[1766599241770,7.5616,2937.8,2936.9,0.0350495]
[1766599242063,14.36945489,2937.8,2936.9,0.0350495]
[1766599242291,7.5616,2937.8,2936.9,0.0350495]
[1766599242587,10.96525016,2938.1,2936.9,0.0350495]
[1766599243098,14.36890032,2938.1,2936.9,0.0350495]
[1766599243262,9.00459576,2938.1,2937.0,6.80966972]
[1766599243457,10.96517134,2938.1,2937.1,0.03404718]
[1766599243688,10.96517134,2938.1,2937.2,0.888]
[1766599243870,10.96517134,2938.1,2937.3,0.03404487]
[1766599244281,14.36874268,2938.1,2937.3,0.03404487]
[1766599244780,10.96517134,2938.1,2937.3,0.03404487]
[1766599245889,10.96517134,2938.1,2937.3,0.46671628]
[1766599246095,3.40347034,2938.2,2937.3,3.87118774]
[1766599246491,7.5297,2938.4,2937.3,3.87118774]
[1766599246696,10.93293644,2938.4,2937.3,3.83714287]
[1766599246891,10.93293644,2938.4,2937.4,0.47251429]
[1766599248714,14.33617288,2938.4,2937.4,0.47251429]
[1766599249515,10.93293644,2938.4,2937.4,3.87687868]
[1766599250412,10.93293644,2938.4,2937.4,7.28124989]
[1766599250714,10.93293644,2938.4,2937.5,0.76216754]
[1766599251011,14.33617288,2938.4,2937.5,0.72812499]
[1766599251188,10.93293644,2938.4,2937.6,0.03404139]
[1766599251397,10.93293644,2938.4,2937.7,0.888]
[1766599251614,10.93293644,2938.4,2937.8,0.03403907]
[1766599251814,10.93293644,2938.4,2937.7,0.888]
[1766599252184,10.93293644,2938.4,2937.8,0.03403907]
[1766599252514,10.93293644,2938.4,2937.0,0.001]
[1766599252515,0.06105731,2937.8,2937.0,0.001]
[1766599252813,0.06105731,2937.6,2937.0,0.001]
[1766599252995,0.03403907,2937.5,2937.0,0.001]
[1766599253196,7.56373907,2937.5,2937.0,0.001]
[1766599253507,8.29217964,2937.5,2937.0,0.001]
[1766599254436,7.56373907,2937.4,2937.0,0.001]
[1766599254719,7.5297,2937.4,2937.0,0.001]
[1766599255020,0.03403907,2937.3,2937.0,0.001]
[1766599257026,0.76247964,2937.5,2937.0,0.001]
[1766599257222,7.5297,2938.2,2937.0,0.001]
[1766599257525,7.5297,2938.0,2937.0,0.001]
[1766599258211,3.40379182,2937.9,2937.0,0.03504834]
[1766599258412,10.93349182,2937.9,2937.0,0.03504834]
[1766599258625,7.5297,2937.9,2937.0,0.03504834]
[1766599260291,3.40390768,2937.8,2937.0,0.03504834]
[1766599260522,10.93360768,2937.8,2937.1,0.34409973]
[1766599260692,7.5297,2937.7,2937.2,0.03404603]
[1766599260895,8.4207,2937.7,2937.0,0.001]
[1766599261919,3.40367597,2938.0,2937.0,3.43987889]
[1766599262091,4.29467597,2938.0,2937.1,0.68458101]
[1766599262293,4.29467597,2938.0,2937.2,0.03404603]
[1766599262521,10.74489279,2937.9,2937.2,0.03404603]
[1766599265498,7.3411,2937.9,2937.2,0.03404603]
[1766599265708,3.4036099,2938.1,2937.2,0.03404603]
[1766599265932,3.4036099,2938.1,2937.3,0.41232965]
[1766599266105,7.3411,2938.0,2937.4,0.03404371]
[1766599266907,10.74489182,2937.9,2937.2,0.03404603]
[1766599267432,7.3411,2937.9,2937.2,0.03404603]
[1766599269929,10.74489589,2937.9,2937.2,0.03404603]
[1766599270439,10.74489589,2937.9,2937.3,0.03404487]
[1766599270626,10.74489589,2937.9,2937.1,0.03504718]
[1766599271004,7.3411,2937.8,2937.1,0.03504718]
[1766599271204,7.3411,2937.8,2937.1,0.37924072]
[1766599272347,7.3411,2937.8,2937.1,3.7839329]
[1766599273151,7.3411,2937.8,2937.1,0.37924072]
[1766599273755,3.40369171,2938.0,2937.1,3.78394971]
[1766599273961,10.74479171,2938.0,2937.1,3.78394971]
[1766599274146,7.3411,2938.0,2937.2,0.37849497]
[1766599274345,7.3411,2938.0,2937.3,0.03404487]
[1766599275151,4.29448976,2938.2,2937.3,0.03404487]
[1766599275460,10.74458976,2938.2,2937.3,0.03404487]
[1766599275758,10.74458976,2938.2,2937.4,0.38171294]
[1766599275932,14.14807952,2938.2,2937.5,0.03404255]
[1766599276260,10.74477597,2938.0,2937.5,0.03404255]
[1766599276447,7.3411,2938.0,2937.3,0.03404487]
[1766599277056,7.3411,2938.0,2937.1,0.03504718]
[1766599277261,7.3411,2938.0,2937.2,0.34408539]
[1766599277466,7.3411,2938.0,2937.3,0.03404487]
[1766599278864,3.40349729,2938.2,2937.3,3.43848318]
[1766599279265,7.3411,2938.3,2937.3,3.43848318]
[1766599279563,11.63546226,2938.3,2937.4,0.37825686]
[1766599279768,11.63546226,2938.3,2937.5,0.03404255]
[1766599279975,7.3411,2938.3,2937.5,0.03404255]
[1766599280363,0.893,2938.4,2937.5,0.03404255]
[1766599280560,7.3411,2938.3,2937.5,0.03404255]
[1766599280751,7.3411,2938.2,2937.5,0.75616503]
[1766599281391,7.3411,2938.2,2937.5,4.1604197]
[1766599282394,7.3411,2938.2,2937.5,0.75616503]
[1766599282578,7.3411,2938.2,2937.5,3.4382907]
[1766599284051,7.3411,2938.2,2937.5,0.03404255]
[1766599284256,7.3411,2938.2,2937.6,0.03404139]
[1766599284457,7.3411,2938.2,2937.7,0.03404023]
[1766599284703,7.3411,2938.2,2937.5,3.43826973]
[1766599284909,0.002,2938.3,2937.6,0.34382697]
[1766599285122,0.002,2938.3,2937.7,0.03404023]
[1766599285412,0.002,2938.4,2937.7,0.03404023]
[1766599286120,0.002,2938.4,2937.7,3.43806059]
[1766599286279,0.002,2938.4,2937.7,0.03404023]
[1766599286484,0.002,2938.4,2937.8,0.37819441]
[1766599286709,7.3431,2938.4,2937.6,0.34382697]
[1766599287117,3.40510042,2938.5,2937.7,3.43806378]
[1766599287118,0.002,2938.5,2937.7,3.43806378]
[1766599287476,0.002,2938.7,2937.7,7.73008733]
[1766599287802,0.002,2938.7,2937.7,7.6960471]
[1766599288121,7.3431,2938.7,2937.8,0.83802648]
[1766599288278,7.3431,2938.7,2937.9,3.40379182]
[1766599288478,8.2321,2939.1,2938.0,0.03403675]
[1766599288716,7.3411,2939.1,2938.0,0.03403675]
[1766599290285,7.3411,2939.1,2938.1,6.80712024]
[1766599290481,7.3411,2939.1,2938.2,0.71815014]
[1766599290895,4.29529961,2939.2,2938.2,0.71815014]
[1766599291926,0.893,2939.2,2938.2,0.71815014]
[1766599292303,4.29530699,2939.2,2938.2,4.12157005]
[1766599292618,11.30630699,2939.2,2938.3,0.500957]
[1766599292830,11.30630699,2939.2,2938.4,0.03403212]
[1766599293191,11.30628884,2939.2,2938.4,0.03403212]
[1766599294113,7.011,2939.1,2938.4,0.03403212]
[1766599294331,7.011,2939.1,2938.5,0.03403096]
[1766599294487,7.011,2939.1,2938.2,0.03403444]
[1766599294692,7.011,2939.1,2938.3,0.43255534]
[1766599294916,7.011,2939.1,2938.4,0.03403212]
[1766599296487,7.011,2939.1,2938.5,0.03403096]
[1766599296686,7.011,2939.1,2938.2,0.03403444]
[1766599297222,7.011,2939.1,2938.2,0.92203444]
[1766599297390,7.011,2939.1,2938.3,0.432558]
[1766599297589,10.4134169,2939.1,2938.4,0.03403212]
[1766599297815,7.011,2939.0,2938.4,0.03403212]
[1766599298125,7.011,2939.0,2938.2,0.888]
[1766599300015,7.011,2939.0,2938.3,0.03403328]
[1766599300219,0.002,2939.1,2938.3,0.03403328]
[1766599300430,0.002,2939.3,2938.4,0.43254581]
[1766599300791,0.002,2939.3,2938.5,0.03403096]
[1766599304819,0.002,2939.4,2938.5,3.43711801]
[1766599305225,0.002,2939.5,2938.5,0.03403096]
[1766599305532,0.002,2939.8,2938.5,6.84022458]
[1766599305701,0.002,2939.8,2938.6,0.77282246]
[1766599305906,0.002,2939.8,2938.7,0.03402865]
[1766599306206,10.37940953,2939.8,2938.8,0.888]
[1766599306927,6.9778,2939.8,2938.9,0.03402633]
[1766599307229,0.002,2939.3,2938.9,0.03402633]
[1766599308293,0.002,2940.0,2938.9,3.43665996]
[1766599308521,0.002,2940.0,2939.0,0.432466]
[1766599308845,6.9778,2940.0,2939.1,0.03402402]
[1766599308999,6.9778,2940.0,2939.2,0.03402286]
[1766599310228,10.37923196,2940.0,2939.2,0.03402286]
[1766599310624,0.002,2940.0,2939.2,0.03402286]
[1766599310931,0.002,2940.0,2939.3,0.43243648]
[1766599311139,0.002,2940.0,2939.4,0.03402054]
[1766599311335,0.002,2940.3,2939.4,0.03402054]
[1766599311511,0.002,2940.5,2939.5,0.888]
[1766599311837,6.9758,2940.6,2939.4,0.38346681]
[1766599312004,6.9758,2940.6,2939.4,1.27146681]
[1766599312206,3.40078217,2940.5,2939.5,0.03401939]
[1766599312507,6.9758,2940.4,2939.5,0.03401939]
[1766599312715,6.9758,2940.2,2939.5,0.03401939]
[1766599313040,6.9758,2940.0,2938.1,0.001]
[1766599313241,6.9758,2939.8,2938.6,3.40293513]
[1766599313402,6.9758,2939.6,2938.6,3.40293513]
[1766599313606,0.03403925,2939.5,2938.6,3.40293513]
[1766599314132,7.00983925,2939.5,2938.5,0.888]
[1766599314315,6.9758,2939.4,2938.5,0.888]
[1766599314634,0.03403925,2939.3,2938.6,0.42921427]
[1766599314830,0.03403925,2939.3,2938.7,0.03402865]
[1766599315533,10.37753326,2939.7,2938.7,0.03402865]
[1766599315832,10.37753326,2939.7,2938.6,0.42921427]
[1766599315833,0.03403925,2939.6,2938.6,0.42921427]
[1766599316130,0.03403925,2939.6,2938.7,0.47212871]
[1766599316438,0.03403925,2939.6,2938.8,0.03402749]
[1766599316817,0.03403925,2939.6,2938.8,3.43674731]
[1766599317130,6.9778,2940.0,2938.8,6.83949673]
[1766599317332,0.03403925,2939.9,2938.9,0.73116254]
[1766599317536,0.03403925,2939.9,2939.0,0.03402517]
[1766599318105,10.37916948,2940.0,2939.0,0.03402517]
[1766599318309,6.9758,2938.4,2937.2,3.40557726]
[1766599318506,0.06105731,2938.7,2937.4,0.01803326]
[1766599318507,6.9758,2938.2,2937.4,0.01803326]
[1766599319407,6.9758,2938.2,2937.4,3.42238938]
[1766599320317,10.44005275,2938.5,2937.4,3.42238938]
[1766599320513,10.37899544,2938.5,2937.5,0.34223894]
[1766599320714,6.9758,2939.1,2937.5,1.23023894]
[1766599320934,0.04253147,2939.0,2937.6,0.01702979]
[1766599321139,7.01833147,2939.0,2937.6,0.01702284]
[1766599321339,6.9758,2939.0,2937.6,0.01702284]
[1766599321537,0.04253292,2938.9,2937.6,0.01702284]
[1766599321724,6.9758,2939.0,2937.6,0.03404139]
[1766599322042,6.9758,2939.0,2937.7,6.8080471]
[1766599322341,6.9758,2939.0,2937.8,0.71824792]
[1766599322528,6.9758,2939.0,2937.9,0.888]
[1766599322848,6.9758,2939.0,2938.0,0.03403675]
[1766599323047,6.9758,2939.0,2938.1,3.40356012]
[1766599323254,6.9758,2939.0,2938.2,0.03403444]
[1766599323420,6.9758,2939.0,2938.3,1.23175946]
[1766599323622,6.9758,2939.0,2938.4,0.03403212]
[1766599325833,6.8687,2938.9,2937.8,4.08805146]
[1766599326149,6.89426442,2938.8,2937.9,0.888]
[1766599326354,6.8687,2938.8,2937.9,4.29175188]
[1766599326647,6.8687,2938.8,2938.0,0.49759607]
[1766599327056,6.8687,2938.8,2937.8,0.68420885]
[1766599327057,6.8687,2938.6,2937.8,1.57220885]
[1766599327252,6.89426442,2938.5,2937.8,0.888]
[1766599327450,6.8687,2938.5,2937.9,0.03403791]
[1766599327653,3.40266827,2938.9,2937.9,0.03403791]
[1766599327654,10.2715025,2938.8,2937.9,0.03403791]
[1766599327833,0.02556442,2938.7,2937.9,0.03403791]
[1766599328029,0.02556442,2938.7,2937.9,0.46662448]
[1766599329227,6.8687,2938.7,2937.9,0.46662448]
[1766599329428,0.02556442,2938.6,2937.9,0.46662448]
[1766599329836,0.02556442,2938.6,2937.9,0.46762448]
[1766599332267,6.8687,2938.5,2937.9,0.001]
[1766599332476,6.8687,2938.5,2937.9,0.889]
[1766599333047,0.02556442,2938.4,2937.9,0.001]
[1766599333374,6.8687,2938.3,2937.9,0.001]
[1766599343191,3.40266114,2938.9,2937.9,0.0264884]
[1766599343490,6.8687,2938.9,2938.0,3.40367597]
[1766599343698,0.002,2939.0,2938.0,3.40367597]
[1766599343699,0.002,2939.0,2938.1,0.9220356]
[1766599343893,6.89626442,2939.0,2938.2,0.43257116]
[1766599344083,6.8707,2939.0,2938.3,0.03403328]
[1766599344393,0.02556442,2938.9,2938.3,0.03403328]
[1766599344959,0.002,2939.0,2938.3,0.03403328]
[1766599345257,10.26954878,2939.3,2938.3,0.03403328]
[1766599345463,6.8687,2939.2,2938.3,3.43736029]
[1766599345688,6.8687,2939.2,2938.4,0.38699315]
[1766599345884,6.8687,2939.2,2938.5,0.92203096]
[1766599346195,6.8687,2939.2,2938.5,0.03403096]
[1766599346393,6.8687,2939.2,2938.5,0.92203096]
[1766599347687,6.8687,2939.1,2938.5,0.92203096]
[1766599348508,6.8687,2939.1,2938.5,0.888]
[1766599350808,10.52249194,2939.8,2938.5,0.92203096]
[1766599351122,7.1209,2939.7,2938.5,7.72822458]
[1766599351315,7.1209,2939.7,2938.5,7.69419362]
[1766599351607,7.1209,2939.7,2938.6,0.80344917]
[1766599352517,7.1209,2939.7,2938.7,0.888]
[1766599352815,3.40182337,2939.6,2938.8,0.03402749]
[1766599353016,10.41632337,2939.6,2938.9,0.888]
[1766599353220,10.41632337,2939.6,2939.0,0.03402517]
[1766599353522,7.0145,2939.6,2938.9,0.888]
[1766599353720,7.0145,2939.6,2939.0,0.03402517]
[1766599354994,3.4019143,2939.6,2939.0,0.03402517]
[1766599355322,7.0145,2939.5,2939.0,0.03402517]
[1766599357941,7.04852517,2939.4,2938.3,3.40326045]
[1766599358113,7.07555731,2939.4,2938.5,0.888]
[1766599358290,7.0145,2939.2,2938.5,0.888]
[1766599358487,7.04852517,2939.1,2938.5,0.888]
[1766599358716,7.0145,2939.1,2938.5,0.888]
[1766599358915,7.0145,2939.1,2938.6,0.03402981]
[1766599359308,7.0145,2939.3,2938.6,0.03402981]
[1766599359523,0.03402517,2939.2,2938.6,0.03402981]
[1766599360026,0.03402517,2939.2,2938.6,3.43700673]
[1766599360192,7.0145,2939.3,2938.6,4.20982707]
[1766599361129,7.04852517,2939.2,2938.6,0.03402981]
[1766599361332,7.0145,2939.2,2938.6,0.03402981]
[1766599362534,0.03402517,2939.1,2938.6,0.03402981]
[1766599362829,7.0145,2939.1,2938.4,0.888]
[1766599363032,7.04852517,2939.0,2938.4,0.888]
[1766599363239,0.03402517,2938.9,2938.5,0.03403096]
[1766599363409,7.0145,2938.9,2938.4,0.03403212]
[1766599364706,7.0145,2938.9,2938.3,0.888]
[1766599365034,0.03402517,2938.8,2938.3,0.888]
[1766599366442,6.96302517,2938.8,2938.3,0.888]
[1766599366613,6.929,2938.4,2937.9,0.001]
[1766599366810,6.929,2938.2,2937.9,0.001]
[1766599367105,6.96302517,2938.1,2937.9,0.001]
[1766599367311,0.03402517,2938.0,2937.9,0.001]
[1766599369253,6.929,2938.1,2937.9,0.001]
[1766599369456,6.929,2938.4,2937.9,0.001]
[1766599369750,8.00234745,2938.3,2937.9,0.001]
[1766599369954,7.96832228,2938.3,2937.9,0.001]
[1766599370323,0.03402517,2938.2,2937.9,0.001]
[1766599370949,7.96832228,2938.3,2937.9,0.001]
[1766599371748,6.96302517,2938.2,2937.9,0.001]
[1766599371954,6.929,2938.2,2937.9,0.001]
[1766599373567,6.96302517,2938.1,2937.5,0.001]
[1766599373767,6.929,2937.9,2937.5,0.001]
[1766599373973,0.06105731,2938.0,2937.5,0.001]
[1766599373974,6.929,2937.7,2937.5,0.001]
[1766599378873,6.929,2938.1,2937.5,0.001]
[1766599379065,7.73561726,2938.1,2937.5,0.001]
[1766599380471,10.33221263,2938.4,2937.5,0.03504255]
[1766599382444,7.1541,2938.0,2937.5,0.03504255]
[1766599383471,7.1541,2938.0,2937.5,0.001]
[1766599385078,7.1541,2938.0,2937.5,0.03504255]
[1766599387374,7.1541,2938.0,2937.5,0.37907991]
[1766599390156,7.1541,2938.7,2937.5,3.78333522]
[1766599390350,0.891,2938.4,2937.5,3.78333522]
[1766599390551,0.891,2938.4,2937.5,7.18759053]
[1766599390745,8.0451,2938.4,2937.5,7.15354798]
[1766599390955,7.1541,2938.3,2937.6,0.74949619]
[1766599391250,7.1541,2938.1,2937.5,0.001]
[1766599391474,7.1541,2937.9,2937.5,0.001]
[1766599391881,0.03402517,2937.8,2937.5,0.001]
[1766599392063,7.1541,2937.8,2937.5,0.001]
[1766599394383,4.29468925,2938.0,2937.5,0.001]
[1766599394384,8.0451,2938.0,2937.5,0.001]
[1766599394577,7.18812517,2937.9,2937.5,0.001]
[1766599394886,7.1541,2937.9,2937.5,0.001]
[1766599395966,7.1541,2937.9,2937.5,0.03504255]
[1766599396154,7.1541,2937.9,2937.5,0.001]
[1766599397465,10.55789761,2937.9,2937.5,0.001]
[1766599397670,7.1541,2937.9,2937.5,0.03504255]
[1766599398002,7.18812517,2937.8,2937.4,0.001]
[1766599398175,7.18812517,2937.8,2937.2,0.03504603]
[1766599398176,7.1541,2937.8,2937.2,0.03504603]
[1766599398376,7.1541,2937.6,2937.1,0.001]
[1766599398597,7.1541,2937.4,2937.1,0.001]
[1766599398797,7.96286532,2937.4,2937.1,0.001]
[1766599399001,7.1541,2937.4,2937.1,0.001]
[1766599402416,7.1541,2937.3,2937.1,0.001]
[1766599405406,7.1541,2937.1,2936.9,0.001]
[1766599405601,0.891,2937.0,2936.9,0.001]
[1766599409522,8.0451,2937.0,2936.9,0.001]
[1766599410713,8.0451,2937.0,2936.7,0.001]
[1766599411725,8.84961,2937.0,2936.7,0.001]
[1766599412798,8.0451,2937.0,2936.7,0.001]
[1766599414031,0.891,2937.0,2936.7,0.001]
[1766599414201,0.002,2937.4,2936.7,0.01805488]
[1766599414406,10.41385771,2937.4,2936.7,0.01805488]
[1766599414625,10.37130307,2937.4,2936.7,0.01805488]
[1766599414827,7.00745608,2937.3,2936.7,0.36059909]
[1766599415031,6.9649,2937.3,2936.7,0.36059909]
[1766599415238,0.04255753,2937.2,2936.7,0.36059909]
[1766599415438,6.9649,2937.3,2936.7,0.36059909]
[1766599416021,7.00745753,2937.2,2936.7,0.36059909]
[1766599416211,6.9649,2937.2,2936.7,0.36059909]
[1766599417670,6.7467,2936.7,2936.3,0.001]
[1766599417810,0.06105731,2936.8,2936.0,0.001]
[1766599417811,0.06105731,2936.4,2936.0,0.001]
[1766599418143,0.04257058,2936.3,2936.0,0.001]
[1766599418347,6.7467,2936.6,2936.0,0.001]
[1766599418730,6.7467,2936.6,2935.3,4.1217]
[1766599418934,6.7467,2936.6,2935.4,0.44461032]
[1766599419130,6.7467,2936.5,2935.2,7.074546]
[1766599419445,6.78926768,2936.5,2934.8,2.632016]
[1766599419641,6.85032499,2936.5,2934.9,0.888]
[1766599419833,6.7467,2936.3,2934.9,0.888]
[1766599420035,6.7467,2936.1,2935.0,6.82284851]
[1766599420235,6.78927493,2936.0,2935.0,6.81431004]
[1766599420416,6.78927493,2936.0,2935.1,0.0085408]
[1766599421544,6.78927493,2936.0,2935.3,0.001]
[1766599422429,6.78927493,2936.0,2935.3,0.69187495]
[1766599422839,0.04257493,2936.0,2935.3,0.69187495]
[1766599423040,0.04257348,2936.1,2935.3,0.69187495]
[1766599423360,6.78927348,2936.1,2935.3,0.69187495]
[1766599424031,6.78927348,2936.1,2935.3,5.53467743]
[1766599424432,6.78927348,2936.1,2935.4,4.64154305]
[1766599424659,6.78927348,2936.1,2935.5,0.00853311]
[1766599424961,0.891,2936.2,2935.5,0.00853311]
[1766599425163,7.6377,2936.2,2935.5,0.00853311]
[1766599425865,6.7467,2937.2,2936.1,4.84280248]
[1766599426163,6.7467,2937.0,2935.8,4.84280248]
[1766599426348,6.7467,2936.6,2935.8,4.84280248]
[1766599426553,6.7467,2936.4,2935.6,1.28995694]
[1766599426732,6.7467,2936.2,2934.7,0.001]
[1766599426932,6.7467,2936.0,2935.2,3.40685695]
[1766599427170,6.78927638,2935.9,2935.3,0.0095363]
[1766599427327,6.78927638,2935.9,2935.3,0.001]
[1766599427863,6.78927638,2935.9,2935.3,0.00953818]
[1766599428063,6.78927638,2935.9,2935.3,0.001]
[1766599428436,6.7467,2935.8,2935.3,0.001]
[1766599428631,6.7467,2935.6,2935.3,0.001]
[1766599429565,6.78928218,2935.5,2935.3,0.001]
[1766599431966,6.78928218,2935.5,2934.9,0.00854458]
[1766599432168,6.78928218,2935.5,2934.8,0.00854951]
[1766599433800,6.7467,2935.4,2934.8,0.00854951]
[1766599434063,6.7467,2935.2,2934.1,0.001]
[1766599434287,6.7467,2935.0,2934.1,3.40915721]
[1766599434565,6.7467,2934.8,2934.1,3.40915721]
[1766599434739,6.7467,2934.6,2934.1,0.68275544]
[1766599435089,6.7467,2934.6,2934.1,0.001]
[1766599435267,0.891,2934.7,2934.1,0.001]
[1766599435460,6.7467,2935.1,2934.1,0.001]
[1766599436058,6.7467,2935.1,2934.1,0.035082]
[1766599436265,6.78922948,2935.0,2934.1,0.035082]
[1766599436469,0.04252948,2935.0,2934.1,0.001]
[1766599436763,0.04252948,2935.2,2934.6,0.002]
[1766599437147,0.04252948,2935.2,2934.6,0.03607619]
[1766599437743,6.78922948,2935.6,2934.6,0.03607619]
[1766599437950,0.04252948,2935.5,2934.6,0.03607619]
[1766599438160,6.7467,2935.6,2934.6,0.03607619]
[1766599438347,0.04252948,2935.5,2934.6,0.03607619]
[1766599438879,0.04252948,2935.5,2934.7,6.81500664]
[1766599439082,0.04252948,2935.5,2934.8,1.05994049]
[1766599439287,0.04252948,2935.8,2934.9,0.889]
[1766599439441,6.7467,2936.5,2935.1,3.88346]
[1766599439750,6.7467,2936.3,2935.2,0.42582238]
[1766599439950,0.04252948,2936.2,2935.2,0.03406922]
[1766599440149,6.7467,2936.2,2935.1,5.52946]
[1766599440360,0.04252948,2936.1,2935.2,0.03406922]
[1766599440554,0.04252948,2936.1,2935.3,0.03406806]
[1766599440756,0.04252948,2936.1,2935.4,0.0340669]
[1766599441075,0.04252948,2936.1,2935.1,6.81407788]
[1766599441278,0.04252948,2936.1,2935.2,0.71888416]
[1766599441487,6.8715,2936.5,2935.2,0.71888416]
[1766599441780,6.91402948,2936.4,2935.2,0.71888416]
[1766599441971,6.8715,2936.4,2935.2,0.71888416]
[1766599442179,6.91402948,2936.3,2935.3,1.0940001]
[1766599442483,6.8715,2936.3,2935.4,0.9230669]
[1766599442657,0.04252948,2936.2,2935.4,0.9230669]
[1766599443059,0.04252948,2936.2,2935.5,3.40657468]
[1766599443271,6.91402948,2936.2,2935.6,0.46702874]
[1766599443457,6.8715,2936.2,2935.6,0.46702874]
[1766599443661,6.91402948,2936.1,2935.6,0.46702874]
[1766599443987,6.8725,2936.1,2935.6,0.46702874]
[1766599444484,6.8725,2936.1,2935.7,0.03406342]
[1766599445184,0.04252948,2936.0,2935.7,0.03406342]
[1766599445385,0.001,2936.1,2935.7,0.03406342]
[1766599446053,0.04352948,2936.1,2935.7,0.03406342]
[1766599446759,4.2973154,2936.6,2935.7,0.42140695]
[1766599446760,6.8715,2936.5,2935.7,0.42140695]
[1766599447058,6.8715,2936.5,2935.7,3.82773867]
[1766599447682,6.8715,2936.4,2935.7,0.42140695]
[1766599448076,6.8715,2936.4,2935.7,0.03406342]
[1766599448280,6.8715,2936.4,2935.6,0.03406458]
[1766599449062,6.8715,2936.4,2935.6,3.44052011]
[1766599449257,6.8715,2936.4,2935.6,0.03406458]
[1766599450173,6.8715,2936.3,2935.6,0.03406458]
[1766599451268,8.23975633,2936.3,2935.6,0.03406458]
[1766599451996,8.23975633,2936.3,2935.5,0.03406574]
[1766599452290,4.77401312,2936.3,2935.5,0.03406574]
[1766599452495,6.8715,2936.2,2935.5,0.03406574]
[1766599453278,6.8715,2936.2,2935.5,0.03606574]
[1766599454691,6.8715,2936.2,2935.5,3.44262824]
[1766599455179,6.8715,2936.2,2935.5,0.03606574]
[1766599455381,6.8715,2936.2,2935.5,3.44263572]
[1766599455581,6.8715,2936.2,2935.5,4.21636492]
[1766599455891,0.001,2936.4,2935.7,4.84264398]
[1766599456081,0.001,2936.4,2935.8,0.03406226]
[1766599456276,3.40653451,2936.4,2935.8,0.03406226]
[1766599456495,6.8715,2936.3,2935.8,0.03406226]
[1766599456801,6.8715,2936.3,2935.7,3.4063426]
[1766599456968,6.8715,2936.3,2935.8,0.03406226]
[1766599458199,0.001,2936.4,2935.8,0.03406226]
[1766599458398,6.8715,2937.2,2935.8,0.92206226]
[1766599458708,6.8715,2937.2,2936.5,4.84264398]
[1766599458995,6.8715,2937.2,2936.5,4.87669812]
[1766599458996,10.9636532,2937.2,2936.5,4.87669812]
[1766599459399,6.8715,2937.1,2936.5,0.03405414]
[1766599459602,6.8715,2937.1,2936.4,0.0340553]
[1766599459973,6.8715,2937.1,2936.4,3.4395558]
[1766599460373,6.8715,2937.1,2936.4,4.69714127]
[1766599460595,6.8715,2937.1,2936.4,1.29164077]
[1766599460981,6.8715,2937.1,2936.4,4.69714279]
[1766599461185,0.002,2937.3,2936.5,4.84264398]
[1766599461496,0.002,2937.3,2936.6,0.03405298]